[Event "55th Biel Festival QRT Rapid"]
[Site "Biel"]
[Date "2022.07.12"]
[Round "3.1"]
[White "Muradli Mahammad"]
[Black "Yu Yangyi"]
[Result "0-1"]
[ECO "D19"]
[WhiteElo "2432"]
[BlackElo "2738"]
[Annotator "ChessBase"]
[PlyCount "62"]
[EventDate "2022.07.12"]
[EventType "tourn"]
[EventCountry "SUI"]
[SourceTitle "playchess.com"]
[Source "ChessBase"]
[SourceQuality "1"]
[TimeControl "900+5"]

1. Nf3 {[%emt 0:00:07]} d5 {[%emt 0:00:02]} 2. d4 {[%emt 0:00:03]} Nf6 {[%emt 0:00:07]} 3. c4 {[%emt 0:00:01]} c6 {[%emt 0:00:04]} 4. Nc3 {[%emt 0:00:06]} dxc4 {[%emt 0:00:07]} 5. a4 {[%emt 0:00:02]} Bf5 {[%emt 0:00:04]} 6. e3 {[%emt 0:00:06]} e6 {[%emt 0:00:02]} 7. Bxc4 {[%emt 0:00:03]} Bb4 {[%emt 0:00:02]} 8. O-O {[%emt 0:00:03]} O-O {[%emt 0:00:02]} 9. Qe2 {[%emt 0:00:04]} Bg6 {[%emt 0:00:13]} 10. Ne5 {[%emt 0:00:24]} Nbd7 {[%emt 0:00:01]} 11. Rd1 {[%emt 0:00:55]} Qa5 {[%emt 0:01:34]} 12. Nxg6 {[%emt 0:00:40]} hxg6 {[%emt 0:00:02]} 13. e4 {[%emt 0:02:31]} e5 {[%emt 0:00:04]} 14. Be3 {[%emt 0:02:50]} Bxc3 {[%emt 0:01:23]} 15. bxc3 {[%emt 0:00:01]} Nxe4 {[%emt 0:00:02]} 16. Qd3 {[%emt 0:01:03]} Qxc3 {[%emt 0:00:55]} 17. Bxf7+ {[%emt 0:00:27]} Rxf7 {[%emt 0:03:22]} 18. Qxe4 {[%emt 0:00:02]} Nf6 {[%emt 0:00:43]} 19. Qxg6 {[%emt 0:00:57]} Nd5 {[%emt 0:00:18]} 20. Rdc1 {[%emt 0:02:00]} Qa5 {[%emt 0:00:23]} 21. Rc5 {[%emt 0:02:45]} Qc7 {[%emt 0:00:02]} 22. Re1 {[%emt 0:00:44]} Raf8 {[%emt 0:00:37]} 23. dxe5 {[%emt 0:00:37]} Qxe5 {[%emt 0:00:04]} 24. Rcc1 {[%emt 0:00:21]} Nxe3 {[%emt 0:00:10]} 25. Rxe3 {[%emt 0:00:04]} Qd4 {[%emt 0:00:57]} 26. Rce1 {[%emt 0:00:13]} Rxf2 {[%emt 0:00:09]} 27. Qe6+ {[%emt 0:00:04]} R2f7 {[%emt 0:00:07]} 28. a5 {[%emt 0:00:03]} Qd7 {[%emt 0:01:16]} 29. Qb3 {[%emt 0:00:07]} Qd2 {[%emt 0:00:11]} 30. h3 {[%emt 0:00:05]} Qxa5 {[%emt 0:00:05]} 31. Re7 {[%emt 0:00:06]} Qb6+ {[%emt 0:00:03]} 0-1

[Event "55th Biel Festival QRT Rapid"]
[Site "Biel"]
[Date "2022.07.12"]
[Round "3.2"]
[White "Motylev Alexander"]
[Black "Gagare Shardul"]
[Result "*"]
[ECO "C95"]
[WhiteElo "2721"]
[BlackElo "2449"]
[Annotator "ChessBase"]
[PlyCount "56"]
[EventDate "2022.07.12"]
[EventType "tourn"]
[EventCountry "SUI"]
[SourceTitle "playchess.com"]
[Source "ChessBase"]
[SourceQuality "1"]
[TimeControl "900+5"]

1. e4 {[%emt 0:00:04]} e5 {[%emt 0:00:09]} 2. Nf3 {[%emt 0:00:04]} Nc6 {[%emt 0:00:03]} 3. Bb5 {[%emt 0:00:02]} a6 {[%emt 0:00:04]} 4. Ba4 {[%emt 0:00:02]} Nf6 {[%emt 0:00:03]} 5. O-O {[%emt 0:00:02]} Be7 {[%emt 0:00:06]} 6. Re1 {[%emt 0:00:05]} b5 {[%emt 0:00:00]} 7. Bb3 {[%emt 0:00:02]} d6 {[%emt 0:00:02]} 8. c3 {[%emt 0:00:05]} O-O {[%emt 0:00:31]} 9. h3 {[%emt 0:00:01]} Nb8 {[%emt 0:00:13]} 10. d4 {[%emt 0:00:18]} Nbd7 {[%emt 0:00:04]} 11. Nbd2 {[%emt 0:00:17]} Bb7 {[%emt 0:00:02]} 12. Bc2 {[%emt 0:00:04]} Re8 {[%emt 0:00:04]} 13. Nf1 {[%emt 0:00:03]} Bf8 {[%emt 0:00:02]} 14. Ng3 {[%emt 0:00:01]} g6 {[%emt 0:00:03]} 15. Bg5 {[%emt 0:00:16]} Bg7 {[%emt 0:02:17]} 16. Qd2 {[%emt 0:00:08]} Qc8 {[%emt 0:01:17]} 17. Rad1 {[%emt 0:00:45]} a5 {[%emt 0:00:09]} 18. Bh6 {[%emt 0:00:09]} Bh8 {[%emt 0:00:12]} 19. Qg5 {[%emt 0:01:09]} Ra6 {[%emt 0:00:39]} 20. Qh4 {[%emt 0:01:07]} exd4 {[%emt 0:04:04]} 21. cxd4 {[%emt 0:01:22]} c5 {[%emt 0:01:49]} 22. Nf5 {[%emt 0:02:12]} cxd4 {[%emt 0:00:23]} 23. N3xd4 {[%emt 0:00:52]} Ne5 {[%emt 0:02:05]} 24. Bb1 {[%emt 0:02:28]} Nfd7 {[%emt 0:01:13]} 25. Nxb5 {[%emt 0:01:15]} gxf5 {[%emt 0:00:13]} 26. Qg3+ {[%emt 0:00:32]} Ng6 {[%emt 0:00:01]} 27. exf5 {[%emt 0:00:08]} Be5 {[%emt 0:00:54]} 28. f4 {[%emt 0:01:07]} Bg7 {[%emt 0:00:12]} *

[Event "55th Biel Festival QRT Rapid"]
[Site "Biel"]
[Date "2022.07.12"]
[Round "3.3"]
[White "Gallagher Joseph G."]
[Black "Lagarde Maxime"]
[Result "*"]
[ECO "C46"]
[WhiteElo "2425"]
[BlackElo "2653"]
[Annotator "ChessBase"]
[PlyCount "55"]
[EventDate "2022.07.12"]
[EventType "tourn"]
[EventCountry "SUI"]
[SourceTitle "playchess.com"]
[Source "ChessBase"]
[SourceQuality "1"]
[TimeControl "900+5"]

1. e4 {[%emt 0:00:04]} e5 {[%emt 0:00:02]} 2. Nf3 {[%emt 0:00:06]} Nc6 {[%emt 0:00:02]} 3. Nc3 {[%emt 0:00:03]} Bc5 {[%emt 0:00:08]} 4. Nxe5 {[%emt 0:00:47]} Nxe5 {[%emt 0:00:02]} 5. d4 {[%emt 0:00:01]} Bd6 {[%emt 0:00:01]} 6. dxe5 {[%emt 0:00:03]} Bxe5 {[%emt 0:00:02]} 7. Bd3 {[%emt 0:00:11]} d6 {[%emt 0:00:02]} 8. Be3 {[%emt 0:01:09]} Nf6 {[%emt 0:00:34]} 9. f3 {[%emt 0:01:34]} O-O {[%emt 0:01:16]} 10. Qd2 {[%emt 0:00:02]} c6 {[%emt 0:00:37]} 11. O-O-O {[%emt 0:01:51]} d5 {[%emt 0:03:52]} 12. f4 {[%emt 0:02:56]} Bc7 {[%emt 0:04:13]} 13. e5 {[%emt 0:00:19]} Ng4 {[%emt 0:00:01]} 14. Bc5 {[%emt 0:00:07]} Bb6 {[%emt 0:00:07]} 15. Bg1 {[%emt 0:02:21]} f6 {[%emt 0:00:45]} 16. h3 {[%emt 0:00:45]} Nh6 {[%emt 0:00:01]} 17. g4 {[%emt 0:00:14]} fxe5 {[%emt 0:00:02]} 18. fxe5 {[%emt 0:00:02]} Nf7 {[%emt 0:00:13]} 19. Re1 {[%emt 0:00:27]} Ng5 {[%emt 0:00:12]} 20. Be2 {[%emt 0:00:48]} Be6 {[%emt 0:01:10]} 21. h4 {[%emt 0:01:33]} Nf7 {[%emt 0:00:02]} 22. Bh2 {[%emt 0:00:50]} Nh6 {[%emt 0:00:28]} 23. g5 {[%emt 0:00:16]} Nf5 {[%emt 0:00:01]} 24. Bg1 {[%emt 0:00:02]} Ba5 {[%emt 0:00:22]} 25. Qd1 {[%emt 0:00:30]} Bxc3 {[%emt 0:00:18]} 26. bxc3 {[%emt 0:00:02]} Qa5 {[%emt 0:00:02]} 27. Qd3 {[%emt 0:00:09]} Qa3+ {[%emt 0:00:17]} 28. Kd2 {[%emt 0:00:02]} *

[Event "55th Biel Festival QRT Rapid"]
[Site "Biel"]
[Date "2022.07.12"]
[Round "3.4"]
[White "Iturrizaga Bonelli Eduardo"]
[Black "Haimovich Tal"]
[Result "*"]
[ECO "A12"]
[WhiteElo "2632"]
[BlackElo "2340"]
[Annotator "ChessBase"]
[PlyCount "89"]
[EventDate "2022.07.12"]
[EventType "tourn"]
[EventCountry "SUI"]
[SourceTitle "playchess.com"]
[Source "ChessBase"]
[SourceQuality "1"]
[TimeControl "900+5"]

1. c4 {[%emt 0:03:28]} Nf6 {[%emt 0:00:02]} 2. g3 {[%emt 0:00:01]} c6 {[%emt 0:00:19]} 3. Nf3 {[%emt 0:00:14]} d5 {[%emt 0:00:04]} 4. b3 {[%emt 0:00:07]} Bf5 {[%emt 0:00:19]} 5. Bb2 {[%emt 0:00:02]} e6 {[%emt 0:00:09]} 6. Bg2 {[%emt 0:00:02]} Nbd7 {[%emt 0:00:01]} 7. O-O {[%emt 0:00:03]} Be7 {[%emt 0:01:43]} 8. d3 {[%emt 0:00:02]} O-O {[%emt 0:00:02]} 9. Nh4 {[%emt 0:00:37]} Bg6 {[%emt 0:00:10]} 10. Nxg6 {[%emt 0:00:29]} hxg6 {[%emt 0:00:02]} 11. d4 {[%emt 0:00:11]} a5 {[%emt 0:00:24]} 12. Nc3 {[%emt 0:00:03]} Bb4 {[%emt 0:01:19]} 13. Qc2 {[%emt 0:00:08]} Rc8 {[%emt 0:00:15]} 14. a3 {[%emt 0:00:12]} Bxc3 {[%emt 0:00:43]} 15. Bxc3 {[%emt 0:00:01]} b5 {[%emt 0:00:08]} 16. c5 {[%emt 0:00:02]} Re8 {[%emt 0:00:10]} 17. f4 {[%emt 0:00:52]} Qc7 {[%emt 0:00:20]} 18. h3 {[%emt 0:00:07]} Ra8 {[%emt 0:00:10]} 19. e3 {[%emt 0:00:06]} a4 {[%emt 0:00:10]} 20. b4 {[%emt 0:00:09]} Ne4 {[%emt 0:00:27]} 21. Bxe4 {[%emt 0:00:04]} dxe4 {[%emt 0:00:01]} 22. Qxe4 {[%emt 0:00:16]} f5 {[%emt 0:00:01]} 23. Qg2 {[%emt 0:00:06]} Nf6 {[%emt 0:00:02]} 24. g4 {[%emt 0:00:04]} Qd7 {[%emt 0:00:08]} 25. Be1 {[%emt 0:00:18]} Qd5 {[%emt 0:00:08]} 26. Bh4 {[%emt 0:00:27]} Qxg2+ {[%emt 0:00:18]} 27. Kxg2 {[%emt 0:00:02]} Ne4 {[%emt 0:00:01]} 28. Rh1 {[%emt 0:00:46]} Kf7 {[%emt 0:00:06]} 29. Rag1 {[%emt 0:00:08]} Rh8 {[%emt 0:00:23]} 30. Be1 {[%emt 0:00:01]} Rh7 {[%emt 0:00:07]} 31. Kf3 {[%emt 0:00:39]} Rah8 {[%emt 0:01:00]} 32. h4 {[%emt 0:00:01]} Nf6 {[%emt 0:00:21]} 33. gxf5 {[%emt 0:00:05]} exf5 {[%emt 0:03:28]} 34. Rg2 {[%emt 0:00:02]} Re8 {[%emt 0:00:03]} 35. Rhg1 {[%emt 0:00:02]} Rh6 {[%emt 0:00:01]} 36. Rg5 {[%emt 0:01:33]} Nd5 {[%emt 0:00:34]} 37. Bf2 {[%emt 0:00:18]} Re6 {[%emt 0:00:04]} 38. Rd1 {[%emt 0:00:53]} Rh5 {[%emt 0:00:11]} 39. Rgg1 {[%emt 0:00:34]} Rh8 {[%emt 0:00:02]} 40. Rd3 {[%emt 0:00:03]} Rhe8 {[%emt 0:00:18]} 41. Rh1 {[%emt 0:00:24]} Rh8 {[%emt 0:00:03]} 42. Rdd1 {[%emt 0:00:10]} Rhe8 {[%emt 0:00:04]} 43. Rde1 {[%emt 0:01:19]} Nf6 {[%emt 0:00:12]} 44. Reg1 {[%emt 0:01:11]} Rh8 {[%emt 0:00:40]} 45. Rg2 {[%emt 0:00:21]} *

[Event "55th Biel Festival QRT Rapid"]
[Site "Biel"]
[Date "2022.07.12"]
[Round "3.5"]
[White "Katz Alexander"]
[Black "Sethuraman S.P."]
[Result "*"]
[ECO "B51"]
[WhiteElo "2388"]
[BlackElo "2556"]
[Annotator "ChessBase"]
[PlyCount "56"]
[EventDate "2022.07.12"]
[EventType "tourn"]
[EventCountry "SUI"]
[SourceTitle "playchess.com"]
[Source "ChessBase"]
[SourceQuality "1"]
[TimeControl "900+5"]

1. e4 {[%emt 0:00:05]} c5 {[%emt 0:02:48]} 2. Nf3 {[%emt 0:00:05]} d6 {[%emt 0:00:03]} 3. Bb5+ {[%emt 0:00:08]} Nd7 {[%emt 0:00:03]} 4. O-O {[%emt 0:00:06]} a6 {[%emt 0:00:01]} 5. Bd3 {[%emt 0:00:02]} Ngf6 {[%emt 0:00:08]} 6. c3 {[%emt 0:00:03]} b5 {[%emt 0:00:08]} 7. Bc2 {[%emt 0:00:02]} Bb7 {[%emt 0:00:06]} 8. Re1 {[%emt 0:00:03]} e6 {[%emt 0:00:27]} 9. d4 {[%emt 0:00:03]} Be7 {[%emt 0:00:15]} 10. Nbd2 {[%emt 0:00:03]} Qc7 {[%emt 0:00:08]} 11. e5 {[%emt 0:00:25]} dxe5 {[%emt 0:00:17]} 12. dxe5 {[%emt 0:01:24]} Nd5 {[%emt 0:00:03]} 13. Ne4 {[%emt 0:00:05]} c4 {[%emt 0:01:50]} 14. Bg5 {[%emt 0:01:33]} Bc5 {[%emt 0:01:19]} 15. b4 {[%emt 0:00:26]} Ba7 {[%emt 0:02:43]} 16. Bh4 {[%emt 0:02:02]} O-O {[%emt 0:00:49]} 17. Qd2 {[%emt 0:00:17]} Kh8 {[%emt 0:03:17]} 18. Qg5 {[%emt 0:03:52]} h6 {[%emt 0:00:57]} 19. Qg3 {[%emt 0:01:40]} f5 {[%emt 0:00:18]} 20. exf6 {[%emt 0:00:28]} Qxg3 {[%emt 0:00:02]} 21. Bxg3 {[%emt 0:00:02]} N7xf6 {[%emt 0:00:01]} 22. Nd6 {[%emt 0:00:01]} Bc8 {[%emt 0:00:16]} 23. Ne5 {[%emt 0:00:35]} Kg8 {[%emt 0:00:01]} 24. Ng6 {[%emt 0:00:02]} Rd8 {[%emt 0:00:17]} 25. Nxc8 {[%emt 0:00:02]} Raxc8 {[%emt 0:00:00]} 26. Rxe6 {[%emt 0:00:02]} Bb8 {[%emt 0:00:38]} 27. Rxa6 {[%emt 0:00:19]} Bxg3 {[%emt 0:00:11]} 28. hxg3 {[%emt 0:00:02]} Ra8 {[%emt 0:00:04]} *

[Event "55th Biel Festival QRT Rapid"]
[Site "Biel"]
[Date "2022.07.12"]
[Round "3.6"]
[White "Krishna C R G"]
[Black "Puranik Abhimanyu"]
[Result "*"]
[ECO "D00"]
[WhiteElo "2335"]
[BlackElo "2550"]
[Annotator "ChessBase"]
[PlyCount "55"]
[EventDate "2022.07.12"]
[EventType "tourn"]
[EventCountry "SUI"]
[SourceTitle "playchess.com"]
[Source "ChessBase"]
[SourceQuality "1"]
[TimeControl "900+5"]

1. d4 {[%emt 0:02:47]} Nf6 {[%emt 0:00:02]} 2. Nf3 {[%emt 0:00:02]} g6 {[%emt 0:00:02]} 3. Nc3 {[%emt 0:00:01]} d5 {[%emt 0:00:02]} 4. Bf4 {[%emt 0:00:02]} Bg7 {[%emt 0:00:02]} 5. e3 {[%emt 0:00:02]} O-O {[%emt 0:00:02]} 6. Be2 {[%emt 0:00:01]} c6 {[%emt 0:00:19]} 7. h4 {[%emt 0:00:09]} Bg4 {[%emt 0:00:06]} 8. Ne5 {[%emt 0:00:06]} Bxe2 {[%emt 0:00:03]} 9. Qxe2 {[%emt 0:00:02]} c5 {[%emt 0:00:44]} 10. O-O-O {[%emt 0:01:28]} Nc6 {[%emt 0:00:24]} 11. dxc5 {[%emt 0:01:28]} Rc8 {[%emt 0:01:10]} 12. Nxc6 {[%emt 0:00:19]} bxc6 {[%emt 0:00:23]} 13. Be5 {[%emt 0:00:03]} Qa5 {[%emt 0:00:21]} 14. g4 {[%emt 0:00:50]} Rb8 {[%emt 0:01:10]} 15. a3 {[%emt 0:02:21]} Rb7 {[%emt 0:03:09]} 16. Rd3 {[%emt 0:03:54]} Nd7 {[%emt 0:00:39]} 17. Bxg7 {[%emt 0:00:03]} Kxg7 {[%emt 0:00:04]} 18. Nd1 {[%emt 0:00:36]} Nxc5 {[%emt 0:00:26]} 19. Rc3 {[%emt 0:00:10]} Rfb8 {[%emt 0:00:14]} 20. Qe1 {[%emt 0:01:06]} Na4 {[%emt 0:01:55]} 21. b4 {[%emt 0:00:31]} Qc7 {[%emt 0:01:13]} 22. Rb3 {[%emt 0:00:07]} c5 {[%emt 0:00:06]} 23. Nc3 {[%emt 0:00:03]} Nb6 {[%emt 0:00:43]} 24. Qd2 {[%emt 0:00:42]} cxb4 {[%emt 0:01:07]} 25. axb4 {[%emt 0:00:02]} Nc4 {[%emt 0:00:11]} 26. Qxd5 {[%emt 0:00:02]} Rxb4 {[%emt 0:00:04]} 27. Rxb4 {[%emt 0:00:14]} Rxb4 {[%emt 0:00:02]} 28. Rd1 {[%emt 0:00:06]} *

[Event "55th Biel Festival QRT Rapid"]
[Site "Biel"]
[Date "2022.07.12"]
[Round "3.7"]
[White "Milov Leonid"]
[Black "Iniyan P"]
[Result "0-1"]
[ECO "B83"]
[WhiteElo "2484"]
[BlackElo "2295"]
[Annotator "ChessBase"]
[PlyCount "56"]
[EventDate "2022.07.12"]
[EventType "tourn"]
[EventCountry "SUI"]
[SourceTitle "playchess.com"]
[Source "ChessBase"]
[SourceQuality "1"]
[TimeControl "900+5"]

1. e4 {[%emt 0:00:18]} c5 {[%emt 0:03:01]} 2. Nf3 {[%emt 0:00:02]} d6 {[%emt 0:00:01]} 3. d4 {[%emt 0:00:02]} cxd4 {[%emt 0:00:01]} 4. Nxd4 {[%emt 0:00:01]} Nf6 {[%emt 0:00:01]} 5. Nc3 {[%emt 0:00:01]} a6 {[%emt 0:00:00]} 6. Be3 {[%emt 0:00:02]} e6 {[%emt 0:00:01]} 7. Be2 {[%emt 0:00:01]} Qc7 {[%emt 0:00:02]} 8. Qd2 {[%emt 0:00:07]} Nc6 {[%emt 0:00:02]} 9. f4 {[%emt 0:00:20]} Be7 {[%emt 0:00:04]} 10. O-O-O {[%emt 0:00:07]} Bd7 {[%emt 0:00:33]} 11. g4 {[%emt 0:00:18]} b5 {[%emt 0:00:53]} 12. g5 {[%emt 0:00:31]} b4 {[%emt 0:00:01]} 13. Nd5 {[%emt 0:01:47]} exd5 {[%emt 0:01:12]} 14. gxf6 {[%emt 0:00:02]} Bxf6 {[%emt 0:00:04]} 15. exd5 {[%emt 0:00:03]} Ne7 {[%emt 0:00:27]} 16. Bf3 {[%emt 0:00:24]} O-O {[%emt 0:00:02]} 17. Kb1 {[%emt 0:01:03]} Rfc8 {[%emt 0:00:43]} 18. Be4 {[%emt 0:00:19]} a5 {[%emt 0:00:05]} 19. Rc1 {[%emt 0:01:53]} a4 {[%emt 0:00:26]} 20. c4 {[%emt 0:00:10]} bxc3 {[%emt 0:00:28]} 21. Rxc3 {[%emt 0:00:03]} Qb7 {[%emt 0:00:01]} 22. Rxc8+ {[%emt 0:03:18]} Rxc8 {[%emt 0:00:03]} 23. Rc1 {[%emt 0:00:20]} Rxc1+ {[%emt 0:00:22]} 24. Qxc1 {[%emt 0:00:03]} Nxd5 {[%emt 0:00:06]} 25. Bf3 {[%emt 0:01:38]} a3 {[%emt 0:00:27]} 26. b3 {[%emt 0:00:16]} Qa7 {[%emt 0:00:43]} 27. Bxd5 {[%emt 0:03:12]} Bxd4 {[%emt 0:00:02]} 28. Bxf7+ {[%emt 0:00:37]} Kf8 {[%emt 0:00:01]} 0-1

[Event "55th Biel Festival QRT Rapid"]
[Site "Biel"]
[Date "2022.07.12"]
[Round "3.8"]
[White "Prraneeth Vuppala"]
[Black "Sargsyan Shant"]
[Result "*"]
[ECO "C84"]
[WhiteElo "1628"]
[BlackElo "2477"]
[Annotator "ChessBase"]
[PlyCount "78"]
[EventDate "2022.07.12"]
[EventType "tourn"]
[EventCountry "SUI"]
[SourceTitle "playchess.com"]
[Source "ChessBase"]
[SourceQuality "1"]
[TimeControl "900+5"]

1. e4 {[%emt 0:00:17]} e5 {[%emt 0:00:10]} 2. Nf3 {[%emt 0:00:03]} Nc6 {[%emt 0:00:02]} 3. Bb5 {[%emt 0:00:10]} a6 {[%emt 0:00:01]} 4. Ba4 {[%emt 0:00:01]} Nf6 {[%emt 0:00:02]} 5. O-O {[%emt 0:00:03]} Be7 {[%emt 0:00:01]} 6. d3 {[%emt 0:00:19]} b5 {[%emt 0:00:03]} 7. Bb3 {[%emt 0:00:02]} d6 {[%emt 0:00:02]} 8. c3 {[%emt 0:00:02]} O-O {[%emt 0:00:20]} 9. a4 {[%emt 0:00:08]} Bd7 {[%emt 0:00:36]} 10. Bc2 {[%emt 0:00:07]} Re8 {[%emt 0:00:10]} 11. Re1 {[%emt 0:00:49]} Bf8 {[%emt 0:00:02]} 12. Bg5 {[%emt 0:00:19]} Rb8 {[%emt 0:00:15]} 13. Nbd2 {[%emt 0:00:27]} h6 {[%emt 0:00:02]} 14. Bh4 {[%emt 0:00:03]} g6 {[%emt 0:00:56]} 15. h3 {[%emt 0:01:46]} Bg7 {[%emt 0:00:05]} 16. axb5 {[%emt 0:00:47]} axb5 {[%emt 0:00:01]} 17. Nf1 {[%emt 0:01:26]} Qc8 {[%emt 0:00:56]} 18. Ne3 {[%emt 0:02:34]} b4 {[%emt 0:00:05]} 19. Bb3 {[%emt 0:01:12]} bxc3 {[%emt 0:00:14]} 20. bxc3 {[%emt 0:00:02]} Ne7 {[%emt 0:00:23]} 21. Bc4 {[%emt 0:00:43]} g5 {[%emt 0:00:09]} 22. Bg3 {[%emt 0:00:01]} Ng6 {[%emt 0:00:01]} 23. Nh2 {[%emt 0:00:49]} h5 {[%emt 0:00:30]} 24. f3 {[%emt 0:00:51]} Nf4 {[%emt 0:00:31]} 25. d4 {[%emt 0:00:20]} Rb2 {[%emt 0:00:18]} 26. Ra2 {[%emt 0:00:28]} Rxa2 {[%emt 0:01:38]} 27. Bxa2 {[%emt 0:00:02]} Qa8 {[%emt 0:01:00]} 28. Qd2 {[%emt 0:00:21]} Rb8 {[%emt 0:00:25]} 29. dxe5 {[%emt 0:00:49]} dxe5 {[%emt 0:00:08]} 30. Nf5 {[%emt 0:01:15]} Bxf5 {[%emt 0:00:25]} 31. exf5 {[%emt 0:00:02]} Qa3 {[%emt 0:02:13]} 32. Bxf4 {[%emt 0:00:22]} exf4 {[%emt 0:00:36]} 33. Nf1 {[%emt 0:00:22]} Rb2 {[%emt 0:00:52]} 34. Qd8+ {[%emt 0:00:14]} Qf8 {[%emt 0:00:02]} 35. Qxf8+ {[%emt 0:00:25]} Bxf8 {[%emt 0:00:01]} 36. Bc4 {[%emt 0:00:09]} Bc5+ {[%emt 0:00:08]} 37. Kh2 {[%emt 0:00:05]} Rc2 {[%emt 0:00:18]} 38. Re5 {[%emt 0:00:08]} Bd6 {[%emt 0:00:12]} 39. Re2 {[%emt 0:00:04]} Rxc3 {[%emt 0:00:10]} *

[Event "55th Biel Festival QRT Rapid"]
[Site "Biel"]
[Date "2022.07.12"]
[Round "3.10"]
[White "Iordachescu Viorel"]
[Black "Pranav Anand"]
[Result "*"]
[ECO "B31"]
[WhiteElo "2552"]
[BlackElo "1767"]
[Annotator "ChessBase"]
[PlyCount "75"]
[EventDate "2022.07.12"]
[EventType "tourn"]
[EventCountry "SUI"]
[SourceTitle "playchess.com"]
[Source "ChessBase"]
[SourceQuality "1"]
[TimeControl "900+5"]

1. e4 {[%emt 0:00:06]} c5 {[%emt 0:00:02]} 2. Nf3 {[%emt 0:00:05]} Nc6 {[%emt 0:00:02]} 3. Bb5 {[%emt 0:00:04]} g6 {[%emt 0:00:10]} 4. Bxc6 {[%emt 0:00:03]} bxc6 {[%emt 0:00:01]} 5. O-O {[%emt 0:00:05]} Bg7 {[%emt 0:00:02]} 6. Re1 {[%emt 0:00:04]} Nh6 {[%emt 0:00:08]} 7. c3 {[%emt 0:00:07]} O-O {[%emt 0:00:03]} 8. d4 {[%emt 0:00:03]} cxd4 {[%emt 0:00:27]} 9. cxd4 {[%emt 0:00:04]} d5 {[%emt 0:00:01]} 10. e5 {[%emt 0:00:12]} f6 {[%emt 0:00:02]} 11. h3 {[%emt 0:00:49]} Nf7 {[%emt 0:00:22]} 12. Nc3 {[%emt 0:00:42]} g5 {[%emt 0:02:05]} 13. Qd3 {[%emt 0:00:39]} e6 {[%emt 0:04:05]} 14. Na4 {[%emt 0:01:00]} f5 {[%emt 0:00:02]} 15. Nc5 {[%emt 0:00:28]} a5 {[%emt 0:00:52]} 16. Bd2 {[%emt 0:00:22]} h5 {[%emt 0:00:22]} 17. g3 {[%emt 0:01:29]} Ra7 {[%emt 0:00:14]} 18. h4 {[%emt 0:01:41]} Bh6 {[%emt 0:00:32]} 19. Kg2 {[%emt 0:01:17]} gxh4 {[%emt 0:01:31]} 20. Nxh4 {[%emt 0:00:23]} Kg7 {[%emt 0:01:24]} 21. Bxh6+ {[%emt 0:00:17]} Nxh6 {[%emt 0:00:03]} 22. Rh1 {[%emt 0:00:08]} Rh8 {[%emt 0:00:05]} 23. Qd2 {[%emt 0:00:38]} Rf7 {[%emt 0:00:36]} 24. Nd3 {[%emt 0:00:09]} Ng4 {[%emt 0:00:25]} 25. f3 {[%emt 0:00:19]} Nh6 {[%emt 0:00:14]} 26. Nf4 {[%emt 0:00:03]} Ng8 {[%emt 0:00:09]} 27. Rh2 {[%emt 0:01:09]} Ne7 {[%emt 0:00:16]} 28. Nh3 {[%emt 0:00:31]} Kf8 {[%emt 0:00:15]} 29. Ng5 {[%emt 0:00:10]} Rg7 {[%emt 0:00:02]} 30. f4 {[%emt 0:00:02]} c5 {[%emt 0:00:07]} 31. Nhf3 {[%emt 0:00:09]} Nc6 {[%emt 0:00:37]} 32. Rah1 {[%emt 0:00:07]} Qe8 {[%emt 0:00:00]} 33. Rc1 {[%emt 0:00:31]} cxd4 {[%emt 0:00:23]} 34. Nxd4 {[%emt 0:00:08]} Nxd4 {[%emt 0:00:02]} 35. Qxd4 {[%emt 0:00:03]} Bb7 {[%emt 0:00:04]} 36. Rc5 {[%emt 0:00:38]} Rh6 {[%emt 0:00:10]} 37. Kg1 {[%emt 0:00:33]} h4 {[%emt 0:00:45]} 38. Rxa5 {[%emt 0:00:02]} *

[Event "55th Biel Festival QRT Rapid"]
[Site "Biel"]
[Date "2022.07.12"]
[Round "3.12"]
[White "Tregubov Pavel V."]
[Black "Ragios Konstantinos"]
[Result "1-0"]
[ECO "C84"]
[WhiteElo "2593"]
[BlackElo "1880"]
[Annotator "ChessBase"]
[PlyCount "45"]
[EventDate "2022.07.12"]
[EventType "tourn"]
[EventCountry "SUI"]
[SourceTitle "playchess.com"]
[Source "ChessBase"]
[SourceQuality "1"]
[TimeControl "900+5"]

1. e4 {[%emt 0:00:04]} e5 {[%emt 0:00:03]} 2. Nf3 {[%emt 0:00:02]} Nc6 {[%emt 0:00:02]} 3. Bb5 {[%emt 0:00:02]} a6 {[%emt 0:00:04]} 4. Ba4 {[%emt 0:00:01]} Nf6 {[%emt 0:00:06]} 5. d4 {[%emt 0:00:03]} Nxd4 {[%emt 0:01:40]} 6. Nxd4 {[%emt 0:01:50]} exd4 {[%emt 0:00:01]} 7. e5 {[%emt 0:00:04]} Ne4 {[%emt 0:02:30]} 8. Qxd4 {[%emt 0:00:03]} Nc5 {[%emt 0:00:01]} 9. O-O {[%emt 0:00:19]} Be7 {[%emt 0:00:22]} 10. Bb3 {[%emt 0:00:09]} O-O {[%emt 0:00:12]} 11. Nc3 {[%emt 0:00:03]} d6 {[%emt 0:00:12]} 12. Bf4 {[%emt 0:00:14]} dxe5 {[%emt 0:00:39]} 13. Qxe5 {[%emt 0:00:18]} Bd6 {[%emt 0:00:02]} 14. Qd4 {[%emt 0:00:03]} Nxb3 {[%emt 0:00:12]} 15. axb3 {[%emt 0:00:01]} Bxf4 {[%emt 0:00:04]} 16. Qxf4 {[%emt 0:00:02]} Be6 {[%emt 0:00:08]} 17. Rfe1 {[%emt 0:00:09]} h6 {[%emt 0:00:33]} 18. Rad1 {[%emt 0:00:08]} Qc8 {[%emt 0:00:02]} 19. Rd3 {[%emt 0:01:20]} Bf5 {[%emt 0:00:40]} 20. Nd5 {[%emt 0:00:49]} Re8 {[%emt 0:00:36]} 21. Ne7+ {[%emt 0:00:52]} Kf8 {[%emt 0:01:51]} 22. Rde3 {[%emt 0:00:10]} Be6 {[%emt 0:00:26]} 23. Nxc8 {[%emt 0:00:03]} 1-0